bitfinex/quotes_BTCUSD_20250303
["timestamp","ask_amount","ask_price","bid_price","bid_amount"]
[1740983506030,0.642753,92970.0,92969.0,0.0011704]
[1740983508151,0.429076,92969.0,92955.0,0.129094]
[1740983508349,0.3,92969.0,92950.0,0.16187702]
[1740983508666,0.30006481,92969.0,92949.0,0.0793]
[1740983509013,0.30006481,92969.0,92965.0,0.12908]
[1740983509210,6.481e-05,92969.0,92949.0,0.0793]
[1740983509431,0.00606481,92969.0,92966.0,0.129079]
[1740983509632,6.481e-05,92969.0,92968.0,0.129076]
[1740983509969,0.00606481,92969.0,92968.0,0.129076]
[1740983510189,0.00606481,92969.0,92949.0,0.0793]
[1740983510374,0.01306481,92969.0,92964.0,0.129082]
[1740983510714,0.01306481,92969.0,92965.0,0.12908]
[1740983510867,0.00606481,92969.0,92949.0,0.0793]
[1740983511073,0.01306481,92969.0,92949.0,0.0793]
[1740983511419,0.00706481,92969.0,92968.0,0.129076]
[1740983511622,0.00606481,92969.0,92968.0,0.129076]
[1740983511835,6.481e-05,92969.0,92968.0,0.129076]
[1740983511973,0.00706481,92969.0,92968.0,0.129076]
[1740983512319,0.01306481,92969.0,92960.0,0.172116]
[1740983512520,0.00706481,92969.0,92965.0,0.129079]
[1740983512704,0.00706481,92969.0,92967.0,0.129078]
[1740983512871,0.01306481,92969.0,92940.0,0.16187702]
[1740983513120,0.01306481,92969.0,92968.0,0.129076]
[1740983513777,0.00606481,92969.0,92968.0,0.129076]
[1740983514319,0.00706481,92969.0,92966.0,0.129079]
[1740983514649,0.01306481,92969.0,92966.0,0.129079]
[1740983514986,0.00706481,92969.0,92966.0,0.129079]
[1740983515197,0.01306481,92969.0,92965.0,0.129079]
[1740983515384,0.00606481,92969.0,92965.0,0.129079]
[1740983515588,6.481e-05,92969.0,92960.0,0.172116]
[1740983515926,0.00606481,92969.0,92964.0,0.172108]
[1740983516126,6.481e-05,92969.0,92965.0,0.12908]
[1740983516462,0.00606481,92969.0,92966.0,0.129079]
[1740983516635,0.15528,92968.0,92956.0,0.172124]
[1740983516836,0.15528,92968.0,92967.0,0.129078]
[1740983517410,0.15528,92968.0,92965.0,0.172107]
[1740983517613,0.15528,92968.0,92956.0,0.172124]
[1740983517813,0.15528,92968.0,92948.0,0.1723075]
[1740983518013,0.16228,92968.0,92956.0,0.129092]
[1740983518229,0.16228,92968.0,92948.0,0.0001705]
[1740983518428,0.172105,92967.0,92948.0,0.0001705]
[1740983518627,0.15528,92968.0,92948.0,0.0001705]
[1740983518835,0.16228,92968.0,92948.0,0.0001705]
[1740983519078,0.16228,92968.0,92954.0,0.0001705]
[1740983519407,0.16228,92968.0,92956.0,0.129092]
[1740983519536,0.16228,92968.0,92954.0,0.0001705]
[1740983519746,0.16828,92968.0,92954.0,0.1292655]
[1740983519939,0.129094,92955.0,92954.0,0.0001705]
[1740983520186,0.12909,92959.0,92954.0,0.0001705]
[1740983520425,0.3,92966.0,92954.0,0.0001705]
[1740983520570,0.3,92961.0,92954.0,0.0001705]
[1740983520987,0.172117,92960.0,92954.0,0.0001705]
[1740983521194,0.172118,92959.0,92954.0,0.0001705]
[1740983521518,0.129094,92955.0,92954.0,0.0001705]
[1740983522009,0.07612,92960.0,92954.0,0.0001705]
[1740983522424,0.129089,92959.0,92954.0,0.0001705]
[1740983522645,0.132089,92959.0,92954.0,0.0001705]
[1740983523099,0.07612,92960.0,92954.0,0.0001705]
[1740983523218,0.129091,92958.0,92954.0,0.0001705]
[1740983523415,0.129089,92959.0,92954.0,0.0001705]
[1740983523657,0.07612,92960.0,92954.0,0.0001705]
[1740983524399,0.007,92960.0,92954.0,0.0001705]
[1740983524723,0.429083,92963.0,92954.0,0.0001705]
[1740983524922,0.013,92960.0,92954.0,0.0001705]
[1740983525128,0.007,92960.0,92954.0,0.0001705]
[1740983525608,0.006,92960.0,92954.0,0.0001705]
[1740983525822,0.007,92960.0,92954.0,0.0001705]
[1740983526015,0.013,92960.0,92954.0,0.0001705]
[1740983526797,0.013,92960.0,92959.0,0.129089]
[1740983527019,0.006,92960.0,92954.0,0.0001705]
[1740983527336,0.013,92960.0,92954.0,0.0001705]
[1740983527838,0.02194117,92963.0,92954.0,0.0001705]
[1740983528255,0.013,92960.0,92954.0,0.0001705]
[1740983528611,0.006,92960.0,92954.0,0.0001705]
[1740983529047,0.129094,92955.0,92954.0,0.0001705]
[1740983529378,0.03594117,92963.0,92954.0,0.0001705]
[1740983529512,0.129093,92956.0,92954.0,0.0001705]
[1740983529919,0.429094,92955.0,92954.0,0.0001705]
[1740983531413,0.480994,92955.0,92954.0,0.0001705]
[1740983531724,0.50457178,92955.0,92954.0,0.0001705]
[1740983531953,0.82867178,92955.0,92954.0,0.0001705]
[1740983532130,0.85421263,92955.0,92954.0,0.0001705]
[1740983532334,0.81963485,92955.0,92954.0,0.0001705]
[1740983532740,0.82663485,92955.0,92954.0,0.0001705]
[1740983532998,0.3,92948.0,92922.0,0.172187]
[1740983533205,0.6241,92948.0,92925.0,0.129135]
[1740983533363,0.3,92943.0,92926.0,0.129134]
[1740983533562,0.3,92943.0,92929.0,0.12913]
[1740983533814,0.3,92943.0,92927.0,0.129133]
[1740983534262,0.3,92943.0,92928.0,0.129132]
[1740983534430,0.429112,92943.0,92926.0,0.129134]
[1740983534632,0.434112,92943.0,92927.0,0.129133]
[1740983534864,0.434112,92943.0,92925.0,0.129135]
[1740983535039,0.434112,92943.0,92926.0,0.129134]
[1740983535235,0.3,92945.0,92926.0,0.129133]
[1740983535534,0.305,92943.0,92926.0,0.129133]
[1740983535845,0.438111,92943.0,92926.0,0.129133]
[1740983536202,0.434111,92943.0,92926.0,0.129133]
[1740983536396,0.305,92943.0,92920.0,0.172189]
[1740983536721,0.3,92945.0,92918.0,0.2524644]
[1740983536920,0.02184882,92935.0,92918.0,0.2524644]
[1740983537118,0.15532,92934.0,92918.0,0.2524644]
[1740983537467,0.15532,92934.0,92919.0,0.172191]
[1740983537585,0.15532,92934.0,92923.0,0.172185]
[1740983538065,0.15532,92934.0,92918.0,0.0802704]
[1740983538251,0.15532,92934.0,92923.0,9.906e-05]
[1740983538457,0.15832,92934.0,92923.0,9.906e-05]
[1740983538649,0.129135,92926.0,92923.0,9.906e-05]
[1740983538949,0.129137,92924.0,92923.0,9.906e-05]
[1740983539145,0.3,92925.0,92923.0,9.906e-05]
[1740983539551,0.553037,92924.0,92923.0,9.906e-05]
[1740983540106,0.56359331,92924.0,92923.0,9.906e-05]
[1740983541259,0.57059331,92924.0,92923.0,9.906e-05]
[1740983541467,0.44145631,92924.0,92923.0,9.906e-05]
[1740983541660,0.57059331,92924.0,92923.0,9.906e-05]
[1740983541943,0.57759331,92924.0,92923.0,9.906e-05]
[1740983542178,0.37145631,92924.0,92923.0,9.906e-05]
[1740983542377,0.49359331,92924.0,92923.0,9.906e-05]
[1740983542778,0.50059331,92924.0,92923.0,9.906e-05]
[1740983543094,0.3,92921.0,92907.0,0.00095076]
[1740983543333,0.129145,92919.0,92907.0,0.00107113]
[1740983543459,0.129146,92918.0,92907.0,0.00107113]
[1740983543660,0.3,92921.0,92907.0,0.00107113]
[1740983544064,0.129154,92913.0,92907.0,0.00107113]
[1740983544279,0.07828,92917.0,92907.0,0.00107113]
[1740983544491,0.12916,92908.0,92907.0,0.00107113]
[1740983544935,0.42916,92908.0,92907.0,0.00107113]
[1740983545339,0.47436,92908.0,92907.0,0.00107113]
[1740983545557,0.47436,92908.0,92907.0,0.0008497]
[1740983545743,0.67253041,92908.0,92907.0,0.0008497]
[1740983545943,0.429162,92906.0,92905.0,1e-08]
[1740983546143,0.429162,92906.0,92894.0,7e-05]
[1740983546144,0.429178,92895.0,92894.0,7e-05]
[1740983546347,0.429178,92895.0,92876.0,0.0001704]
[1740983546348,0.429196,92882.0,92876.0,0.0001704]
[1740983546550,0.429196,92882.0,92881.0,0.00557311]
[1740983546752,0.3,92882.0,92881.0,0.00557311]
[1740983547165,0.01984327,92882.0,92881.0,0.21467011]
[1740983547982,0.02384327,92882.0,92881.0,0.21467011]
[1740983548137,0.02684327,92882.0,92881.0,0.21467011]
[1740983548348,0.02384327,92882.0,92881.0,0.21467011]
[1740983548747,0.02684327,92882.0,92881.0,0.21467011]
[1740983548966,0.02684327,92882.0,92881.0,0.08547311]
[1740983548967,0.007,92882.0,92881.0,0.08547311]
[1740983549428,0.003,92882.0,92881.0,0.08547311]
[1740983549907,0.007,92882.0,92881.0,0.08547311]
[1740983550245,0.003,92882.0,92881.0,0.08547311]
[1740983550444,0.007,92882.0,92881.0,0.08547311]
[1740983550834,0.007,92882.0,92881.0,0.00557311]
[1740983551164,0.004,92882.0,92881.0,0.13477011]
[1740983551569,0.02681984,92882.0,92881.0,0.13477011]
[1740983551767,0.02281984,92882.0,92881.0,0.13477011]
[1740983551968,0.02281984,92882.0,92881.0,0.21287011]
[1740983552169,0.02581984,92882.0,92881.0,0.21287011]
[1740983552371,0.01981984,92882.0,92881.0,0.00557311]
[1740983552573,0.3,92884.0,92881.0,0.00557311]
[1740983553197,0.3,92884.0,92871.0,0.07768421]
[1740983553560,0.004,92882.0,92871.0,0.07780492]
[1740983553764,0.004,92882.0,92871.0,0.00012071]
[1740983553959,0.01981408,92883.0,92871.0,0.00012071]
[1740983554553,0.3,92884.0,92871.0,0.00012071]
[1740983555311,0.003,92882.0,92871.0,0.00012071]
[1740983556042,0.3,92880.0,92871.0,0.00012071]
[1740983557066,0.3,92878.0,92871.0,0.00012071]
[1740983557265,0.172263,92881.0,92871.0,0.00012071]
[1740983557636,0.3,92880.0,92871.0,0.00012071]
[1740983557994,0.003,92880.0,92872.0,0.0772]
[1740983558206,0.003,92880.0,92872.0,0.206408]
[1740983558430,0.003,92880.0,92872.0,0.0772]
[1740983559274,0.003,92881.0,92872.0,0.0772]
[1740983559473,0.01980216,92879.0,92872.0,0.0772]
[1740983559681,0.01980216,92879.0,92876.0,0.129204]
[1740983560120,0.01980216,92879.0,92873.0,0.172278]
[1740983560328,0.01980216,92879.0,92872.0,0.0772]
[1740983560680,0.003,92880.0,92879.0,0.1292]
[1740983560885,0.003,92880.0,92872.0,0.24948]
[1740983561102,0.003,92880.0,92878.0,0.1292]
[1740983561297,0.003,92880.0,92879.0,0.1292]
[1740983561414,0.01981573,92879.0,92878.0,0.129201]
[1740983561921,0.01981573,92879.0,92878.0,0.212001]
[1740983562350,0.003,92881.0,92878.0,0.0828]
[1740983562582,0.003,92880.0,92878.0,0.212001]
[1740983562879,0.000341,92891.0,92878.0,0.212001]
[1740983563259,0.000341,92891.0,92878.0,0.0828]
[1740983563468,0.000341,92891.0,92884.0,0.204693]
[1740983563869,0.000341,92891.0,92884.0,0.201693]
[1740983565888,0.000341,92891.0,92884.0,0.248193]
[1740983566100,0.15936,92885.0,92884.0,0.248193]
[1740983566302,0.15736,92885.0,92884.0,0.248193]
[1740983566695,0.15536,92885.0,92884.0,0.248193]
[1740983566900,0.15736,92885.0,92884.0,0.248193]
[1740983567117,0.15736,92885.0,92884.0,0.0755]
[1740983568249,0.15536,92885.0,92884.0,0.0755]
[1740983568425,0.15536,92885.0,92881.0,0.0001705]
[1740983569558,0.01987538,92884.0,92881.0,0.0001705]
[1740983570548,0.01987538,92883.0,92881.0,0.0001705]
[1740983571322,0.259096,92882.0,92881.0,0.0001705]
[1740983571475,0.27897138,92882.0,92881.0,0.0001705]
[1740983571672,0.57897138,92882.0,92881.0,0.0001705]
[1740983572029,0.31987538,92882.0,92881.0,0.0001705]
[1740983572607,0.44907138,92882.0,92881.0,0.0001705]
[1740983572927,0.429196,92882.0,92881.0,0.0001705]
[1740983573223,0.3,92882.0,92881.0,0.0001705]
[1740983573801,0.4291,92882.0,92881.0,0.0001705]
[1740983574001,0.45095707,92882.0,92881.0,0.0001705]
[1740983574204,0.50425307,92882.0,92881.0,0.0001705]
[1740983575591,0.32885707,92882.0,92881.0,0.0001705]
[1740983576050,0.33485707,92882.0,92881.0,0.0001705]
[1740983576221,0.32785707,92882.0,92881.0,0.0001705]
[1740983576425,0.34175812,92882.0,92881.0,0.0001705]
[1740983576809,0.47095412,92882.0,92881.0,0.0001705]
[1740983577207,0.45105307,92882.0,92881.0,0.0001705]
[1740983577833,0.45805307,92882.0,92881.0,0.0001705]
[1740983578183,0.17227,92878.0,92871.0,0.00012071]
[1740983578392,0.12921,92872.0,92871.0,0.00012071]
[1740983578766,0.301485,92874.0,92871.0,0.00012071]
[1740983578948,0.3,92877.0,92871.0,0.00012071]
[1740983579295,0.12921,92872.0,92871.0,0.00012071]
[1740983580285,0.01990027,92876.0,92871.0,0.00012071]
[1740983580435,0.004,92874.0,92871.0,0.00029121]
[1740983580643,0.01990027,92876.0,92873.0,0.129208]
[1740983580841,0.01990027,92876.0,92872.0,0.0797]
[1740983581043,0.05174,92873.0,92872.0,0.0797]
[1740983582695,0.05174,92873.0,92872.0,0.20491]
[1740983583777,0.05174,92873.0,92872.0,0.0757]
[1740983583915,0.05174,92873.0,92872.0,0.20491]
[1740983584476,0.01990027,92873.0,92872.0,0.20491]
[1740983585098,0.02290027,92873.0,92872.0,0.20491]
[1740983585310,0.02290027,92873.0,92872.0,0.0757]
[1740983586113,0.01990027,92873.0,92872.0,0.0757]
[1740983586435,0.01990027,92873.0,92872.0,0.20491]
[1740983586613,0.02090027,92873.0,92872.0,0.0757]
[1740983586813,0.05276783,92873.0,92872.0,0.0757]
[1740983587014,0.05176783,92873.0,92872.0,0.0757]
[1740983587228,0.05176783,92873.0,92871.0,0.00029121]
[1740983587419,0.05376783,92873.0,92871.0,0.00029121]
[1740983587622,0.05176783,92873.0,92871.0,0.00029121]
[1740983587968,0.05176783,92872.0,92871.0,0.00029121]
[1740983589100,0.05176783,92872.0,92871.0,0.12950221]
[1740983589451,0.05176783,92872.0,92871.0,0.00029121]
[1740983589660,0.05176783,92872.0,92871.0,0.12950221]
[1740983589905,0.01990027,92872.0,92871.0,0.00029121]
[1740983590445,0.02090027,92872.0,92871.0,0.00029121]
[1740983590861,0.01990027,92872.0,92871.0,0.00029121]
[1740983591082,0.05176783,92872.0,92871.0,0.00029121]
[1740983591955,0.05376783,92872.0,92871.0,0.00029121]
[1740983592985,0.05176783,92872.0,92871.0,0.00029121]
[1740983593623,0.05276783,92872.0,92871.0,0.00029121]
[1740983593827,0.05176783,92872.0,92871.0,0.00029121]
[1740983594168,0.18097783,92872.0,92871.0,0.00029121]
[1740983594523,0.05176783,92872.0,92871.0,0.00029121]
[1740983594915,0.05476783,92872.0,92871.0,0.00029121]
[1740983596337,0.05176783,92872.0,92871.0,0.00029121]
[1740983596792,0.05476783,92872.0,92871.0,0.00029121]
[1740983596993,0.02290027,92872.0,92871.0,0.00029121]
[1740983599708,0.003,92872.0,92871.0,0.00029121]
[1740983600098,0.000341,92873.0,92871.0,0.00029121]
[1740983600318,0.004,92872.0,92871.0,0.00029121]
[1740983600527,0.000341,92873.0,92871.0,0.00029121]
[1740983602111,0.004,92872.0,92871.0,0.00029121]
[1740983603226,0.000341,92873.0,92871.0,0.00029121]
[1740983604099,0.004341,92873.0,92871.0,0.00029121]
[1740983604308,0.15544,92872.0,92871.0,0.00029121]
[1740983604920,0.155781,92872.0,92871.0,0.00029121]
[1740983606851,0.159781,92872.0,92871.0,0.00029121]
[1740983609369,0.159781,92872.0,92871.0,0.08009121]
[1740983610318,0.155781,92872.0,92871.0,0.08009121]
[1740983611063,0.155781,92872.0,92871.0,0.00029121]
[1740983612305,0.159781,92872.0,92871.0,0.00029121]
[1740983613475,0.155781,92872.0,92871.0,0.00029121]
[1740983614166,0.155781,92872.0,92871.0,0.22554306]
[1740983614319,0.159781,92872.0,92871.0,0.22554306]
[1740983614519,0.159781,92872.0,92871.0,0.08179121]
[1740983614718,0.159781,92872.0,92871.0,0.00029121]
[1740983615138,0.159781,92872.0,92871.0,0.12950221]
[1740983615319,0.159781,92872.0,92871.0,0.20450221]
[1740983616061,0.159781,92872.0,92871.0,0.07529121]
[1740983616062,0.155781,92872.0,92871.0,0.07529121]
[1740983616266,0.155781,92872.0,92871.0,0.00029121]
[1740983617426,0.156781,92872.0,92871.0,0.00029121]
[1740983618070,0.155781,92872.0,92871.0,0.00029121]
[1740983619058,0.156781,92872.0,92871.0,0.00029121]
[1740983619558,0.285991,92872.0,92871.0,0.00029121]
[1740983620259,0.364391,92872.0,92871.0,0.00029121]
[1740983620456,0.363391,92872.0,92871.0,0.00029121]
[1740983620885,0.368391,92872.0,92871.0,0.00029121]
[1740983621124,0.363391,92872.0,92871.0,0.00029121]
[1740983621539,0.368391,92872.0,92871.0,0.00029121]
[1740983621890,1.01402153,92872.0,92871.0,0.00029121]
[1740983622093,1.24899797,92872.0,92871.0,0.00029121]
[1740983622517,1.25599797,92872.0,92871.0,0.00029121]
[1740983622746,1.14708153,92872.0,92871.0,0.00029121]
[1740983622884,1.14704153,92872.0,92871.0,0.00029121]
[1740983623085,0.3,92871.0,92848.0,0.004838]
[1740983623274,0.3,92866.0,92848.0,0.00495871]
[1740983623503,0.48597702,92870.0,92848.0,0.00495871]
[1740983623504,0.3,92859.0,92848.0,0.00495871]
[1740983623951,0.129242,92849.0,92848.0,0.00495871]
[1740983624137,0.429242,92849.0,92848.0,0.00495871]
[1740983625323,0.129256,92839.0,92830.0,0.0001705]
[1740983625543,0.01108537,92849.0,92833.0,0.00021074]
[1740983625741,0.12926,92837.0,92833.0,0.00021074]
[1740983625913,0.385,92852.0,92833.0,0.00021074]
[1740983625914,0.31587983,92849.0,92833.0,0.00021074]
[1740983626240,0.129262,92834.0,92833.0,0.00021074]
[1740983626438,0.3,92847.0,92833.0,0.00021074]
[1740983626639,0.129257,92838.0,92833.0,0.00021074]
[1740983626844,0.08516,92847.0,92833.0,0.00021074]
[1740983627014,0.04561436,92849.0,92833.0,0.00021074]
[1740983627256,0.0326324,92849.0,92833.0,0.00021074]
[1740983627453,0.004,92839.0,92833.0,0.00021074]
[1740983627653,0.004,92839.0,92838.0,0.129257]
[1740983627982,0.02167089,92849.0,92833.0,0.00021074]
[1740983627983,0.02167089,92849.0,92836.0,0.172345]
[1740983628159,0.03931315,92849.0,92833.0,0.17256174]
[1740983628364,0.3,92845.0,92833.0,0.12947474]
[1740983628767,0.004,92839.0,92833.0,0.00021074]
[1740983629009,0.29152169,92845.0,92837.0,0.129258]
[1740983629215,0.02167089,92849.0,92838.0,0.077]
[1740983629414,0.09508415,92855.0,92838.0,0.077]
[1740983629646,0.09508415,92855.0,92833.0,0.21756274]
[1740983629647,0.02193326,92851.0,92833.0,0.00021074]
[1740983629759,0.129242,92850.0,92833.0,0.00021074]
[1740983629960,0.02193326,92851.0,92833.0,0.00021074]
[1740983630164,0.129243,92848.0,92836.0,0.12926]
[1740983630480,0.19425226,92851.0,92833.0,0.00021074]
[1740983630481,0.006,92849.0,92833.0,0.00021074]
[1740983630677,0.02193326,92851.0,92848.0,0.172323]
[1740983630877,0.02193326,92851.0,92850.0,0.12924]
[1740983631086,0.02793326,92851.0,92850.0,0.12924]
[1740983631309,0.02193326,92851.0,92850.0,0.12924]
[1740983631676,0.02193326,92851.0,92833.0,0.00021074]
[1740983631677,0.005,92849.0,92834.0,0.0783]
[1740983631874,0.02193326,92851.0,92834.0,0.0783]
[1740983632120,0.02193326,92851.0,92845.0,0.172328]
[1740983632326,0.003,92851.0,92843.0,0.172333]
[1740983632530,0.003,92851.0,92834.0,0.0783]
[1740983632531,0.003,92851.0,92848.0,0.172323]
[1740983632745,0.003,92851.0,92850.0,0.12924]
[1740983632957,0.003,92851.0,92848.0,0.129243]
[1740983633269,0.003,92851.0,92846.0,0.129245]
[1740983633468,0.003,92851.0,92836.0,0.172346]
[1740983633625,0.172306,92858.0,92834.0,0.0783]
[1740983633810,0.004,92849.0,92841.0,0.129253]
[1740983634018,0.004,92849.0,92834.0,0.0783]
[1740983634019,0.004,92849.0,92838.0,0.129257]
[1740983634226,0.004,92849.0,92836.0,0.172345]
[1740983634428,0.004,92849.0,92837.0,0.129258]
[1740983634722,0.004,92849.0,92833.0,0.00021074]
[1740983634723,0.529262,92834.0,92833.0,0.00021074]
[1740983634933,0.16187702,92830.0,92802.0,0.005]
[1740983635139,0.01022324,92815.0,92802.0,0.005]
[1740983635367,0.01022324,92815.0,92814.0,0.00029094]
[1740983635368,0.13951224,92815.0,92814.0,0.00029094]
[1740983635585,0.43951224,92815.0,92814.0,0.00029094]
[1740983635913,0.31022324,92815.0,92814.0,0.00029094]
[1740983637465,0.31022324,92815.0,92814.0,0.12958094]
[1740983637669,0.03194263,92815.0,92814.0,0.12958094]
[1740983638010,0.01022324,92815.0,92814.0,0.00029094]
[1740983638142,0.01522324,92815.0,92814.0,0.12958094]
[1740983638724,0.16570324,92815.0,92814.0,0.12958094]
[1740983639180,0.16770324,92815.0,92814.0,0.12958094]
[1740983640577,0.16570324,92815.0,92814.0,0.21088094]
[1740983641473,0.16570324,92815.0,92814.0,0.22147558]
[1740983641607,0.17070324,92815.0,92814.0,0.23601643]
[1740983641814,2.4e-07,92815.0,92814.0,0.98397877]
[1740983642019,0.0003412,92849.0,92848.0,0.129243]
[1740983643267,0.0003412,92849.0,92848.0,0.12936344]
[1740983644081,0.0003412,92849.0,92848.0,0.12836344]
[1740983644761,0.0033412,92849.0,92848.0,0.12836344]
[1740983645299,0.3294412,92849.0,92848.0,0.00012044]
[1740983645491,0.129249,92845.0,92814.0,0.0001705]
[1740983645702,0.3241,92844.0,92836.0,0.129258]
[1740983645899,0.0003412,92849.0,92816.0,0.172382]
[1740983646155,0.02186645,92846.0,92814.0,0.00021064]
[1740983646472,0.02186645,92846.0,92839.0,0.129255]
[1740983646672,0.02186645,92846.0,92821.0,0.01454085]
[1740983646878,0.02186645,92846.0,92839.0,0.129255]
[1740983647076,0.02186645,92846.0,92822.0,0.172372]
[1740983647255,0.02186645,92846.0,92815.0,0.172385]
[1740983647615,0.02186645,92846.0,92820.0,0.172374]
[1740983647820,0.02186645,92846.0,92838.0,0.129256]
[1740983648031,0.02586645,92846.0,92837.0,0.172344]
[1740983648268,0.15511245,92846.0,92832.0,0.129265]
[1740983648479,0.15111245,92846.0,92832.0,0.129265]
[1740983648676,0.02186645,92846.0,92814.0,0.00021064]
[1740983648962,0.02186645,92846.0,92836.0,0.129259]
[1740983649169,0.02186645,92846.0,92836.0,0.129258]
[1740983649345,0.02186645,92846.0,92823.0,0.172369]
[1740983649550,0.02186645,92846.0,92834.0,0.129262]
[1740983649770,0.02186645,92846.0,92823.0,0.172369]
[1740983649771,0.02186645,92846.0,92835.0,0.129261]
[1740983649976,0.02186645,92846.0,92837.0,0.129258]
[1740983650206,0.02186645,92846.0,92834.0,0.129261]
[1740983650453,0.02186645,92846.0,92824.0,0.172367]
[1740983650665,0.02586645,92846.0,92831.0,0.129265]
[1740983650892,0.129249,92844.0,92829.0,0.129268]
[1740983651143,0.19419545,92846.0,92814.0,0.00021064]
[1740983651144,0.02186645,92846.0,92814.0,0.00021064]
[1740983651359,0.129256,92839.0,92824.0,0.129275]
[1740983651796,0.172336,92842.0,92814.0,0.00021064]
[1740983651979,0.02220765,92846.0,92815.0,0.172385]
[1740983652303,0.129254,92840.0,92825.0,0.129274]
[1740983652678,0.129249,92844.0,92814.0,0.00021064]
[1740983652823,0.02620765,92846.0,92830.0,0.129267]
[1740983652824,0.129247,92845.0,92830.0,0.129267]
[1740983653255,0.02620765,92846.0,92822.0,0.172372]
[1740983653673,0.02620765,92846.0,92835.0,0.129261]
[1740983653938,0.02220765,92846.0,92820.0,0.16187702]
[1740983654157,0.004,92842.0,92834.0,0.129262]
[1740983654361,0.02220765,92846.0,92822.0,0.172372]
[1740983654610,0.15145365,92846.0,92832.0,0.129264]
[1740983654808,0.02620765,92846.0,92822.0,0.172372]
[1740983655012,0.02220765,92846.0,92822.0,0.172372]
[1740983655189,0.02220765,92846.0,92834.0,0.129262]
[1740983655419,0.004,92842.0,92820.0,0.16187702]
[1740983655624,0.02220765,92846.0,92820.0,0.16187702]
[1740983655828,0.02220765,92846.0,92831.0,0.172354]
[1740983656004,0.02720765,92846.0,92832.0,0.129265]
[1740983656209,0.02720765,92846.0,92821.0,0.172374]
[1740983656610,0.02720765,92846.0,92833.0,0.129262]
[1740983656805,0.129248,92845.0,92820.0,0.16187702]
[1740983657011,0.28473,92844.0,92829.0,0.129268]
[1740983657253,0.28473,92844.0,92820.0,0.16187702]
[1740983657469,0.15548,92844.0,92831.0,0.129266]
[1740983657635,0.003,92842.0,92831.0,0.129266]
[1740983658045,0.003,92842.0,92820.0,0.16187702]
[1740983658578,0.129251,92843.0,92820.0,0.16187702]
[1740983658733,0.284729,92844.0,92830.0,0.129268]
[1740983658927,0.15548,92844.0,92831.0,0.129266]
[1740983659558,0.003,92842.0,92831.0,0.129266]
[1740983659788,0.003,92842.0,92820.0,0.16187702]
[1740983660010,0.129259,92837.0,92822.0,0.129279]
[1740983660170,0.003,92842.0,92824.0,0.172367]
[1740983660606,0.15548,92844.0,92831.0,0.129266]
[1740983660883,0.16048,92844.0,92832.0,0.129265]
[1740983661203,0.284729,92844.0,92821.0,0.172374]
[1740983661436,0.15548,92844.0,92825.0,0.129274]
[1740983661641,0.003,92842.0,92822.0,0.172371]
[1740983661882,0.003,92842.0,92820.0,0.172375]
[1740983662084,0.129258,92837.0,92822.0,0.129279]
[1740983662265,0.129258,92837.0,92820.0,0.172376]
[1740983662458,0.129258,92837.0,92823.0,0.129278]
[1740983662678,0.15548,92844.0,92814.0,0.00021064]
[1740983662816,0.15548,92844.0,92828.0,0.12927]
[1740983662817,0.129251,92843.0,92828.0,0.12927]
[1740983663037,0.15548,92844.0,92820.0,0.16187702]
[1740983663289,0.15548,92844.0,92830.0,0.129267]
[1740983663927,0.15948,92844.0,92821.0,0.172374]
[1740983664135,0.15548,92844.0,92832.0,0.129265]
[1740983664339,0.15548,92844.0,92833.0,0.129264]
[1740983664801,0.288729,92844.0,92830.0,0.172356]
[1740983665019,0.284729,92844.0,92820.0,0.16204762]
[1740983665343,0.15548,92844.0,92830.0,0.129267]
[1740983665524,0.15548,92844.0,92820.0,0.16204762]
[1740983665669,0.15548,92844.0,92831.0,0.129265]
[1740983665870,0.1263,92843.0,92832.0,0.129264]
[1740983666093,0.1263,92843.0,92820.0,0.16204762]
[1740983666296,0.1263,92843.0,92830.0,0.129267]
[1740983666493,0.0456,92843.0,92831.0,0.129266]
[1740983666734,0.0456,92843.0,92832.0,0.129265]
[1740983667125,0.0456,92843.0,92833.0,0.129264]
[1740983667688,0.0456,92843.0,92820.0,0.16204762]
[1740983667918,0.0456,92843.0,92836.0,0.129259]
[1740983668110,0.0456,92843.0,92837.0,0.129258]
[1740983668327,0.0456,92843.0,92836.0,0.12926]
[1740983668508,0.0456,92843.0,92837.0,0.129258]
[1740983668951,0.0486,92843.0,92820.0,0.16204762]
[1740983669151,0.0486,92843.0,92821.0,0.172374]
[1740983669387,0.129257,92838.0,92821.0,0.172374]
[1740983669603,0.12926,92836.0,92821.0,0.129281]
[1740983669935,0.129262,92835.0,92821.0,0.12928]
[1740983670144,0.0486,92843.0,92820.0,0.0001706]
[1740983670268,0.129253,92842.0,92820.0,0.16204762]
[1740983670722,0.08384,92841.0,92821.0,0.129279]
[1740983670956,0.08384,92841.0,92820.0,0.33442262]
[1740983671151,0.08384,92841.0,92821.0,0.129281]
[1740983671362,0.08384,92841.0,92822.0,0.129279]
[1740983671533,0.08384,92842.0,92822.0,0.129278]
[1740983671885,0.002,92835.0,92820.0,0.0001706]
[1740983672089,0.002,92835.0,92821.0,0.12928]
[1740983672296,0.08384,92842.0,92820.0,0.0001706]
[1740983672512,0.12926,92836.0,92820.0,0.0001706]
[1740983672688,0.3456,92843.0,92820.0,0.16204762]
[1740983672884,0.3456,92843.0,92830.0,0.16187702]
[1740983672885,0.3,92843.0,92830.0,0.16187702]
[1740983673088,0.15548,92844.0,92835.0,0.12926]
[1740983673519,0.004,92841.0,92821.0,0.09114085]
[1740983673651,0.004,92841.0,92828.0,0.172361]
[1740983673855,0.15548,92844.0,92829.0,0.172359]
[1740983674095,0.004,92843.0,92827.0,0.172362]
[1740983674300,0.004,92843.0,92830.0,0.129267]
[1740983674509,0.15548,92844.0,92830.0,0.129267]
[1740983674701,0.004,92841.0,92830.0,0.129267]
[1740983674978,0.004,92841.0,92826.0,0.01454085]
[1740983675177,0.15548,92844.0,92821.0,0.0766]
[1740983675512,0.15548,92844.0,92820.0,0.0001706]
[1740983675727,0.129272,92827.0,92820.0,0.0001706]
[1740983675931,0.3,92842.0,92820.0,0.0001706]
[1740983676590,0.084,92841.0,92820.0,0.0001706]